fUSD/lending_fUSD_20241018
["ID","MTS","AMOUNT","RATE_DAILY","PERIOD"]
[340475740,1729290065063,-500.0,0.00045,120]
[340475741,1729290065089,-499.19056915,0.00045068,120]
[340475742,1729290076288,-715.0,0.00044246,120]
[340475743,1729290076313,-715.0,0.00044246,120]
[340475744,1729290076339,-715.0,0.00044246,120]
[340475745,1729290076365,-715.0,0.00044246,120]
[340475746,1729290076390,-715.0,0.00044246,120]
[340475747,1729290076418,-715.0,0.00044246,120]
[340475748,1729290076443,-715.0,0.00044246,120]
[340475749,1729290076469,-715.0,0.00044246,120]
[340475750,1729290076495,-715.0,0.00044246,120]
[340475751,1729290076520,-715.0,0.00044246,120]
[340475752,1729290076546,-715.0,0.00044246,120]
[340475753,1729290076570,-724.74301128,0.00044246,120]
[340475754,1729290076596,-150.0,0.00044246,120]
[340475755,1729290076621,-200.64894819,0.00044246,120]
[340475756,1729290076646,-1056.0,0.00044246,120]
[340475757,1729290076672,-1056.0,0.00044246,120]
[340475758,1729290076697,-1056.0,0.00044246,120]
[340475759,1729290076724,-1056.0,0.00044246,120]
[340475760,1729290076749,-1056.0,0.00044246,120]
[340475761,1729290076775,-1056.0,0.00044246,120]
[340475762,1729290076801,-1056.0,0.00044246,120]
[340475763,1729290076826,-1056.0,0.00044246,120]
[340475764,1729290076850,-1056.0,0.00044246,120]
[340475765,1729290076875,-1056.0,0.00044246,120]
[340475766,1729290076900,-1056.0,0.00044246,120]
[340475767,1729290076926,-1064.49216858,0.00044246,120]
[340475768,1729290076950,-789.0,0.00044246,120]
[340475769,1729290076976,-789.0,0.00044246,120]
[340475770,1729290077000,-789.0,0.00044246,120]
[340475771,1729290077025,-789.0,0.00044246,120]
[340475772,1729290077050,-789.0,0.00044246,120]
[340475773,1729290077074,-1500.80943085,0.00045068,120]
[340475774,1729290077098,-450.0,0.00045068,120]
[340475775,1729290077122,-1000.0,0.00045068,120]
[340475776,1729290077146,-150.0,0.00045073,120]
[340475777,1729290077170,-217.28,0.00045393,120]
[340475778,1729290077195,-2000.0,0.00045479,120]
[340475779,1729290077220,-4390.28182028,0.000455,60]
[340475780,1729290077244,-1000.0,0.00045579,120]
[340475781,1729290077269,-150.0,0.00045677,120]
[340475782,1729290077293,-2000.0,0.0004589,120]
[340475783,1729290077318,-150.0,0.00045897,120]
[340475784,1729290077345,-150.0,0.00045947,120]
[340475785,1729290077371,-4640.08933349,0.00045997,120]
[340475786,1729290077399,-50000.0,0.00046,46]
[340475787,1729290077430,-50000.0,0.00046,56]
[340475788,1729290077455,-900.0,0.00046,47]
[340475789,1729290077480,-500.0,0.00046,120]
[340475790,1729290077505,-5630.55314859,0.00046,120]
[340475791,1729290077687,-813.41458575,0.00046,120]
[340475792,1729290077714,-1000.0,0.00046,30]
[340475793,1729290077739,-968.50375564,0.00046,30]
[340475794,1729290077765,-50000.0,0.00046,120]
[340475795,1729290077789,-313.0,0.00046,60]
[340475796,1729290077814,-2351.42405026,0.00046,120]
[340475797,1729290077838,-1687.99370903,0.00046,120]
[340475798,1729290077862,-268.586368,0.00046,30]
[340475799,1729290077885,-924.0,0.00046028,30]
[340475800,1729290077909,-442.17294204,0.0004615,120]
[340475801,1729290077934,-427.334,0.00046151,76]
[340475802,1729290077958,-2000.0,0.000463,120]
[340475803,1729290077982,-996.27018791,0.000463,120]
[340475804,1729290078007,-2000.0,0.00046301,120]
[340475805,1729290078037,-1000.0,0.00046476,120]
[340475806,1729290078063,-581.92160913,0.000465,120]
[340475807,1729290078088,-351.46988192,0.000465,60]
[340475808,1729290078114,-155.773648,0.000465,120]
[340475809,1729290078139,-607.886709,0.00046542,120]
[340475810,1729290078166,-2000.0,0.00046712,120]
[340475811,1729290078193,-150.0,0.00046855,120]
[340475812,1729290078219,-719.08684382,0.0004689,120]
[340475813,1729290078248,-50000.0,0.00047,47]
[340475814,1729290078277,-50000.0,0.00047,57]
[340475815,1729290078306,-500.0,0.00047,120]
[340475816,1729290078334,-254.56476423,0.00047,60]
[340475817,1729290078360,-2000.0,0.00047123,120]
[340475818,1729290078387,-1000.0,0.00047372,120]
[340475819,1729290078414,-333.17152331,0.0004748,115]
[340475820,1729290078443,-1039.21232177,0.00047534,120]
[340475821,1729290078470,-150.0,0.00047713,120]
[340475822,1729290078496,-217.28,0.00047977,120]
[340475823,1729290078522,-1000.0,0.00047999,120]
[340475824,1729290078551,-50000.0,0.00048,48]
[340475825,1729290078582,-50000.0,0.00048,58]
[340475826,1729290078609,-450.0,0.00048,120]
[340475827,1729290078635,-500.0,0.00048,120]
[340475828,1729290078661,-50000.0,0.00048,120]
[340475829,1729290078693,-150.0,0.00048,90]
[340475830,1729290078719,-10996.0,0.00048,120]
[340475831,1729290078745,-576.80654999,0.00048,120]
[340475832,1729290078772,-98983.44760509,0.00048,120]
[340475833,1729290078797,-2351.42405027,0.00048,120]
[340475834,1729290078822,-1687.99370904,0.00048,120]
[340475835,1729290078848,-249.39,0.00048,60]
[340475836,1729290078874,-250.0,0.00048,30]
[340475837,1729290078900,-150.0,0.00048081,120]
[340475838,1729290078926,-1000.0,0.00048269,120]
[340475839,1729290078953,-151.0,0.00048411,120]
[340475840,1729290078980,-150.0,0.00048551,120]
[340475841,1729290079006,-600.0,0.000488,120]
[340475842,1729290079032,-339.56205304,0.000489,120]
[340475843,1729290079059,-1000.0,0.00048999,120]
[340475844,1729290079089,-50000.0,0.00049,49]
[340475845,1729290079118,-50000.0,0.00049,59]
[340475846,1729290079143,-500.0,0.00049,120]
[340475847,1729290079170,-735.41907617,0.00049,30]
[340475848,1729290079196,-5193.98519349,0.00049,120]
[340475849,1729290079223,-1000.0,0.00049166,120]
[340475850,1729290079249,-4270.0,0.000492,60]
[340475851,1729290079276,-6962.195,0.0004925,120]
[340475852,1729290079302,-6962.195,0.0004925,120]
[340475853,1729290079329,-6962.196,0.0004925,120]
[340475854,1729290079356,-6962.195,0.0004925,120]
[340475855,1729290079382,-6962.196,0.0004925,120]
[340475856,1729290079409,-750.0,0.00049315,120]
[340475857,1729290079439,-296.53241633,0.00049315,120]
[340475858,1729290079464,-548.46,0.00049315,120]
[340475859,1729290079490,-548.46,0.00049315,120]
[340475860,1729290079516,-548.46,0.00049315,120]
[340475861,1729290079541,-548.46,0.00049315,120]
[340475862,1729290079566,-548.46,0.00049315,120]
[340475863,1729290079592,-548.46,0.00049315,120]
[340475864,1729290079617,-548.46,0.00049315,120]
[340475865,1729290079643,-548.46,0.00049315,120]
[340475866,1729290079672,-548.46,0.00049315,120]
[340475867,1729290079698,-548.46,0.00049315,120]
[340475868,1729290079724,-548.46,0.00049315,120]
[340475869,1729290079749,-548.46,0.00049315,120]
[340475870,1729290079777,-548.46,0.00049315,120]
[340475871,1729290079803,-548.46,0.00049315,120]
[340475872,1729290079827,-548.46,0.00049315,120]
[340475873,1729290079852,-548.46,0.00049315,120]
[340475874,1729290079878,-548.46,0.00049315,120]
[340475875,1729290079903,-548.46,0.00049315,120]
[340475876,1729290079931,-548.46,0.00049315,120]
[340475877,1729290079956,-548.46,0.00049315,120]
[340475878,1729290079981,-548.46,0.00049315,120]
[340475879,1729290080006,-548.46,0.00049315,120]
[340475880,1729290080031,-548.46,0.00049315,120]
[340475881,1729290080055,-548.55046142,0.00049315,120]
[340475882,1729290080234,789.0,0.00044246,120]
[340475883,1729290080272,789.0,0.00044246,120]
[340475884,1729290080336,789.0,0.00044246,120]
[340475885,1729290080536,789.0,0.00044246,120]
[340475886,1729290080583,789.0,0.00044246,120]
[340475887,1729290080619,789.0,0.00044246,120]
[340475888,1729290080671,450.0,0.00045073,120]
[340475889,1729290080704,796.29269951,0.00044246,120]
[340475890,1729290080738,1000.0,0.00045073,120]
[340475891,1729290080796,450.0,0.00045393,120]
[340475892,1729290080828,1000.0,0.00045393,120]
[340475893,1729290080885,450.0,0.00045479,120]
[340475894,1729290080964,450.0,0.000455,60]
[340475895,1729290081110,450.0,0.00045579,120]
[340475896,1729290081153,1000.0,0.00045479,120]
[340475897,1729290081290,1000.0,0.000455,60]
[340475898,1729290082433,431.96662472,0.00049315,30]
[340475899,1729290082461,400.54655885,0.00049315,30]
[340475900,1729290082489,4260.70452167,0.00049315,30]
[340475901,1729290082518,201.05435413,0.00049315,30]
[340475902,1729290089274,562.49089714,0.000372,103]
[340475903,1729290150752,-318.17161128,0.00010859,2]
[340475904,1729290270930,-212.11440752,0.00010859,2]
[340475905,1729290304173,800.0,0.00026986,120]
[340475906,1729290326248,891.84895943,0.00023,120]
[340475907,1729290367996,150.0,0.0001,2]
[340475908,1729290368017,150.0,0.0001,2]
[340475909,1729290368038,150.0,0.0001,2]
[340475910,1729290368065,100.0,0.0001,2]
[340475911,1729290391316,-188.28076452,0.000108,2]
[340475912,1729290424996,800.0,0.00026986,120]
[340475913,1729290425132,-235.9480505,0.000108,2]
[340475914,1729290425151,-1312.92498811,0.000109,2]
[340475915,1729290425169,-182.657546,0.000109,2]
[340475917,1729290500686,460.39791594,0.00027,60]
[340475918,1729290518494,388.77045354,0.0002509,120]
[340475919,1729290524077,467.35105188,0.000145,120]
[340475920,1729290524467,252.5763518,0.00027,120]
[340475921,1729290541994,150.5,0.0001329,120]
[340475922,1729290542460,150.5,0.0001328,120]
[340475923,1729290542917,150.5,0.0001327,120]
[340475924,1729290543386,150.5,0.00024921,120]
[340475925,1729290543909,199.78,0.00024911,120]
[340475926,1729290629763,225.89,0.00025381,120]
[340475930,1729290632215,-1130.26744212,0.000109,2]
[340475931,1729290632225,-159.11806514,0.000109,2]
[340475932,1729290632233,-150.0,0.00010958,2]
[340475933,1729290632243,-175.8,0.00010959,2]
[340475935,1729290632252,-158.77,0.00010959,2]
[340475937,1729290632261,-215.81,0.00010959,2]
[340475940,1729290632270,-7522.21413357,0.00010959,2]
[340475943,1729290632281,-13842.31972644,0.00010959,2]
[340475946,1729290632291,-179.84,0.00010959,2]
[340475948,1729290632300,-899.22,0.00010959,2]
[340475950,1729290632309,-500.0,0.00010973,2]
[340475952,1729290632318,-201.40201533,0.00010973,2]
[340475954,1729290632327,-321.87355022,0.00010973,2]
[340475955,1729290632336,-500.0,0.00010973,2]
[340475956,1729290632347,-1752.18049719,0.00010998,2]
[340475957,1729290632356,-10693.72052133,0.00010999,2]
[340475958,1729290632365,-601.10620619,0.00010999,2]
[340475959,1729290632374,-66400.268099,0.00011,2]
[340475960,1729290632385,-196276.2150303,0.00011,2]
[340475961,1729290632396,-1357.03628517,0.00011,2]
[340475962,1729290632407,-291.26630725,0.00011,2]
[340475963,1729290632422,-1684.98777253,0.00011,2]
[340475964,1729290632433,-654.85,0.00011,2]
[340475965,1729290632555,-1467.87324433,0.00011,2]
[340475966,1729290632566,-604.98,0.00011,2]
[340475967,1729290632577,-15021.70197133,0.00011,2]
[340475968,1729290632589,-880.09323264,0.00011,2]
[340475969,1729290632599,-1157.66053093,0.00011,2]
[340475970,1729290632610,-1709.87048133,0.00011,2]
[340475972,1729290638242,-500.0,0.00010973,2]
[340475973,1729290638251,-2865.95,0.00011,2]
[340475974,1729290638474,-1423795.0043766,0.00011,2]
[340475975,1729290638484,-353542.33663937,0.00011,2]
[340475976,1729290638493,-150.0,0.00011999,2]
[340475977,1729290638502,-10970.82,0.00011999,2]
[340475978,1729290638511,-207.32,0.00012044,2]
[340475979,1729290638520,-1432.76,0.00012044,2]
[340475980,1729290638529,-9999.99,0.00012044,2]
[340475981,1729290638538,-500.0,0.00012342,2]
[340475982,1729290638547,-1000.0,0.00012342,2]
[340475983,1729290638556,-203782.50195014,0.000138,3]
[340475984,1729290638567,-81580.78004086,0.000138,3]
[340475985,1729290638576,-97989.5831565,0.000139,3]
[340475986,1729290638586,-250.32109785,0.00014346,2]
[340475987,1729290638595,-17066.47,0.000159,2]
[340475988,1729290638604,-250.0,0.00017732,2]
[340475989,1729290638613,-159.11806514,0.000179,2]
[340475990,1729290638622,-225.89,0.00018459,2]
[340475991,1729290638631,-324.16,0.00019452,2]
[340475992,1729290638640,-1229.13,0.00019951,2]
[340475993,1729290638650,-25426.57140746,0.0002,7]
[340475994,1729290638659,-4130.0,0.0002,2]
[340475995,1729290638668,-151.44,0.0002,2]
[340475996,1729290638678,-151.44,0.0002,2]
[340475997,1729290638687,-3827.77,0.00020326,2]
[340475998,1729290638696,-23900.0,0.00020629,2]
[340475999,1729290638705,-225.89,0.00020766,2]
[340476000,1729290638715,-3364.0,0.000213,3]
[340476001,1729290638724,-158.77,0.00021461,2]
[340476002,1729290638735,-150.0,0.00021469,2]
[340476003,1729290638745,-159.18,0.000215,2]
[340476004,1729290638754,-160.0,0.00021628,2]
[340476005,1729290638765,-1000.0,0.00021822,2]
[340476006,1729290638776,-250.0,0.00021837,2]
[340476007,1729290638784,-169.66,0.00021918,2]
[340476008,1729290638793,-169.82,0.00021918,2]
[340476009,1729290638802,-217.32,0.00022137,30]
[340476010,1729290638812,-1229.13,0.00022215,2]
[340476011,1729290638821,-1556.5,0.00022365,2]
[340476013,1729290638830,-183.23,0.00022469,2]
[340476015,1729290638839,-250.0,0.00022575,2]
[340476017,1729290638853,-925.6,0.00022667,2]
[340476019,1729290638862,-3357.0,0.00023028,2]
[340476021,1729290638872,-1909.0,0.00023028,2]
[340476023,1729290638881,-809.0,0.00023028,2]
[340476024,1729290638890,-1076.0,0.00023028,2]
[340476026,1729290638903,-812.0,0.00023028,2]
[340476028,1729290638912,-449.0,0.00023028,2]
[340476030,1729290638921,-5885.0,0.00023028,2]
[340476032,1729290638929,-560.0,0.00023028,2]
[340476034,1729290638938,-1245.0,0.00023028,2]
[340476035,1729290638948,-150.0,0.00023028,2]
[340476037,1729290638957,-225.89,0.00023073,2]
[340476039,1729290638966,-183.23,0.00023592,2]
[340476040,1729290638977,-1022.82068603,0.00024,2]
[340476042,1729290638986,-1229.13,0.00024479,2]
[340476044,1729290638995,-1000.0,0.0002455,2]
[340476046,1729290639004,-845.38009036,0.00024592,2]
[340476047,1729290639013,-1000.0,0.000246,2]
[340476048,1729290639022,-500.0,0.00024658,7]
[340476049,1729290639031,-362983.92396476,0.0002468,2]
[340476050,1729290639040,-183.23,0.00024715,2]
[340476051,1729290639049,-217.32,0.00024721,30]
[340476052,1729290639058,-845.38009036,0.00024746,2]
[340476053,1729290639068,-1704.87177424,0.00024784,2]
[340476054,1729290639076,-426.8603,0.00024792,2]
[340476055,1729290639085,-1704.87177424,0.00024808,2]
[340476056,1729290639095,-488.9524,0.00024811,2]
[340476057,1729290639105,-8118.2548,0.00024811,2]
[340476058,1729290639114,-30982.6448,0.00024811,2]
[340476059,1729290639123,-1656.0268,0.00024811,2]
[340476060,1729290639132,-1704.87177424,0.00024831,2]
[340476061,1729290639142,-486.3573,0.00024831,2]
[340476062,1729290639151,-7092.356,0.00024831,2]
[340476063,1729290639160,-2767.7129,0.00024831,2]
[340476064,1729290639169,-573.0,0.00024831,2]
[340476065,1729290639178,-1994.64772429,0.00024834,2]
[340476066,1729290639187,-1704.87177424,0.00024854,2]
[340476067,1729290639196,-427.333,0.00024868,8]
[340476068,1729290639205,-1704.87177424,0.00024877,2]
[340476069,1729290639214,-300.0,0.000249,10]
[340476070,1729290639223,-300.0,0.000249,10]
[340476071,1729290639232,-300.0,0.000249,10]
[340476072,1729290639241,-300.0,0.000249,10]
[340476073,1729290639250,-300.0,0.000249,10]
[340476074,1729290639259,-300.0,0.000249,10]
[340476075,1729290639268,-300.0,0.000249,10]
[340476076,1729290639277,-300.0,0.000249,10]
[340476077,1729290639286,-300.0,0.000249,10]
[340476078,1729290639295,-300.0,0.000249,10]
[340476079,1729290639304,-275.97,0.000249,2]
[340476080,1729290639313,-1704.87177424,0.000249,2]
[340476081,1729290639322,-845.38009036,0.000249,2]
[340476082,1729290639331,-159.11806514,0.000249,2]
[340476083,1729290639340,-300.0,0.0002491,10]
[340476084,1729290639349,-300.0,0.0002491,10]
[340476085,1729290639359,-300.0,0.0002491,10]
[340476086,1729290639368,-300.0,0.0002491,10]
[340476087,1729290639377,-300.0,0.0002491,10]
[340476088,1729290639386,-300.0,0.0002491,10]
[340476089,1729290639395,-300.0,0.0002491,10]
[340476090,1729290639404,-300.0,0.0002491,10]
[340476091,1729290639413,-300.0,0.0002491,10]
[340476092,1729290639422,-374.92636038,0.0002491,10]
[340476093,1729290639431,-300.0,0.00024916,10]
[340476094,1729290639440,-300.0,0.00024916,10]
[340476095,1729290639450,-300.0,0.00024916,10]
[340476096,1729290639461,-300.0,0.00024916,10]
[340476097,1729290639473,-300.0,0.00024916,10]
[340476098,1729290639482,-300.0,0.00024916,10]
[340476099,1729290639491,-300.0,0.00024916,10]
[340476100,1729290639500,-300.0,0.00024916,10]
[340476101,1729290639509,-300.0,0.00024916,10]
[340476102,1729290639518,-300.0,0.0002492,10]
[340476103,1729290639527,-300.0,0.0002492,10]
[340476104,1729290639535,-300.0,0.0002492,10]
[340476105,1729290639544,-300.0,0.0002492,10]
[340476106,1729290639553,-300.0,0.0002492,10]
[340476107,1729290639562,-300.0,0.0002492,10]
[340476108,1729290639571,-300.0,0.0002492,10]
[340476109,1729290639580,-300.0,0.0002492,10]
[340476110,1729290639589,-300.0,0.0002492,10]
[340476111,1729290639598,-151.44,0.00024921,2]
[340476112,1729290639607,-151.0,0.00024921,7]
[340476113,1729290639616,-151.0,0.00024921,7]
[340476114,1729290639625,-151.0,0.00024921,7]
[340476115,1729290639634,-151.0,0.00024921,7]
[340476116,1729290639643,-300.0,0.0002493,10]
[340476117,1729290639652,-300.0,0.0002493,10]
[340476118,1729290639661,-300.0,0.0002493,10]
[340476119,1729290639670,-300.0,0.0002493,10]
[340476120,1729290639679,-300.0,0.0002493,10]
[340476121,1729290639687,-300.0,0.0002493,10]
[340476122,1729290639696,-300.0,0.0002493,10]
[340476123,1729290639705,-300.0,0.0002493,10]
[340476124,1729290639714,-300.0,0.0002493,10]
[340476125,1729290639723,-286.17813824,0.0002493,2]
[340476126,1729290639732,-1950.29699677,0.0002493,2]
[340476127,1729290639741,-375.0,0.0002493,2]
[340476128,1729290639751,-2000.0,0.00024931,2]
[340476129,1729290639760,-200.0,0.00024931,2]
[340476130,1729290639769,-500.0,0.00024931,2]
[340476131,1729290639778,-500.0,0.00024931,2]
[340476132,1729290639787,-500.0,0.00024931,2]
[340476133,1729290639798,-500.0,0.00024931,2]
[340476134,1729290639808,-500.0,0.00024931,2]
[340476135,1729290639818,-500.0,0.00024931,2]
[340476136,1729290639828,-500.0,0.00024931,2]
[340476137,1729290639838,-500.0,0.00024931,2]
[340476138,1729290639848,-500.0,0.00024931,2]
[340476139,1729290639857,-500.0,0.00024931,2]
[340476140,1729290639866,-500.0,0.00024931,2]
[340476141,1729290639875,-500.0,0.00024931,2]
[340476142,1729290639884,-500.0,0.00024931,2]
[340476143,1729290639893,-500.0,0.00024931,2]
[340476144,1729290639906,-152.908841,0.00024931,7]
[340476145,1729290639915,-1814.31,0.00024931,2]
[340476146,1729290639924,-1814.31,0.00024931,2]
[340476147,1729290639933,-1814.31,0.00024931,2]
[340476148,1729290639943,-1814.31,0.00024931,2]
[340476149,1729290639953,-1814.31,0.00024931,2]
[340476150,1729290639963,-500.0,0.00024931,2]
[340476151,1729290639972,-1814.31,0.00024931,2]
[340476152,1729290639982,-500.0,0.00024931,2]
[340476153,1729290639991,-1814.31,0.00024931,2]
[340476154,1729290640001,-500.0,0.00024931,2]
[340476155,1729290640010,-500.0,0.00024931,2]
[340476156,1729290640019,-500.0,0.00024931,2]
[340476157,1729290640029,-500.0,0.00024931,2]
[340476158,1729290640038,-500.0,0.00024931,2]
[340476159,1729290640047,-500.0,0.00024931,2]
[340476160,1729290640057,-500.0,0.00024931,2]
[340476161,1729290640066,-500.0,0.00024931,2]
[340476162,1729290640075,-500.0,0.00024931,2]
[340476163,1729290640084,-500.0,0.00024931,2]
[340476164,1729290640094,-500.0,0.00024931,2]
[340476165,1729290640103,-570.0871833,0.00024931,2]
[340476166,1729290640112,-500.0,0.00024931,2]
[340476167,1729290640121,-500.0,0.00024931,2]
[340476168,1729290640130,-500.0,0.00024931,2]
[340476169,1729290640139,-529.17330178,0.00024931,2]
[340476170,1729290640149,-500.0,0.00024931,2]
[340476171,1729290640158,-500.0,0.00024931,2]
[340476172,1729290640167,-500.0,0.00024931,2]
[340476173,1729290640176,-500.0,0.00024931,2]
[340476174,1729290640186,-500.0,0.00024931,2]
[340476175,1729290640195,-500.0,0.00024931,2]
[340476176,1729290640203,-500.0,0.00024931,2]
[340476177,1729290640212,-500.0,0.00024931,2]
[340476178,1729290640221,-500.0,0.00024931,2]
[340476179,1729290640231,-500.0,0.00024931,2]
[340476180,1729290640240,-151.0,0.00024931,7]
[340476181,1729290640249,-151.0,0.00024931,7]
[340476182,1729290640258,-151.0,0.00024931,7]
[340476183,1729290640267,-151.0,0.00024931,7]
[340476184,1729290640276,-151.0,0.00024931,7]
[340476185,1729290640286,-151.0,0.00024931,7]
[340476186,1729290640297,-151.0,0.00024931,7]
[340476187,1729290640306,-151.0,0.00024931,7]
[340476188,1729290640316,-151.0,0.00024931,7]
[340476189,1729290640326,-500.0,0.00024931,2]
[340476190,1729290640337,-500.0,0.00024931,2]
[340476191,1729290640348,-500.0,0.00024931,2]
[340476192,1729290640357,-500.0,0.00024931,2]
[340476193,1729290640367,-500.0,0.00024931,2]
[340476194,1729290640379,-500.0,0.00024931,2]
[340476195,1729290640389,-500.0,0.00024931,2]
[340476196,1729290640398,-527.0,0.00024931,2]
[340476197,1729290640407,-500.0,0.00024931,2]
[340476198,1729290640416,-500.0,0.00024931,2]
[340476199,1729290640425,-500.0,0.00024931,2]
[340476200,1729290640434,-500.0,0.00024931,2]
[340476201,1729290640443,-500.0,0.00024931,2]
[340476202,1729290640453,-500.0,0.00024931,2]
[340476203,1729290640462,-500.0,0.00024931,2]
[340476204,1729290640472,-500.0,0.00024931,2]
[340476205,1729290640480,-500.0,0.00024931,2]
[340476206,1729290640489,-409.49,0.00024931,2]
[340476207,1729290640499,-1107.47,0.00024931,2]
[340476208,1729290640508,-1107.47,0.00024931,2]
[340476209,1729290640517,-1107.47,0.00024931,2]
[340476210,1729290640526,-1107.47,0.00024931,2]
[340476211,1729290640535,-1107.47,0.00024931,2]
[340476212,1729290640544,-1107.47,0.00024931,2]
[340476213,1729290640553,-1107.47,0.00024931,2]
[340476214,1729290640563,-710.87,0.00024931,2]
[340476215,1729290640574,-710.87,0.00024931,2]
[340476216,1729290640584,-710.87,0.00024931,2]
[340476217,1729290640594,-710.87,0.00024931,2]
[340476218,1729290640603,-710.87,0.00024931,2]
[340476219,1729290640612,-500.0,0.00024931,2]
[340476220,1729290640621,-500.0,0.00024931,2]
[340476221,1729290640790,-500.0,0.00024931,2]
[340476222,1729290640800,-500.0,0.00024931,2]
[340476223,1729290640809,-1590.11,0.00024931,2]
[340476224,1729290640817,-500.0,0.00024931,2]
[340476225,1729290640826,-1590.11,0.00024931,2]
[340476226,1729290640835,-500.0,0.00024931,2]
[340476227,1729290640844,-1590.11,0.00024931,2]
[340476228,1729290640854,-500.0,0.00024931,2]
[340476229,1729290640863,-1590.11,0.00024931,2]
[340476230,1729290640872,-1590.11,0.00024931,2]
[340476231,1729290640881,-1590.11,0.00024931,2]
[340476232,1729290640891,-1590.11,0.00024931,2]
[340476233,1729290640904,-500.0,0.00024931,2]
[340476234,1729290640914,-608.08433216,0.00024931,2]
[340476235,1729290640923,-892.17,0.00024931,2]
[340476236,1729290640932,-892.17,0.00024931,2]
[340476237,1729290640944,-892.17,0.00024931,2]
[340476238,1729290640953,-892.17,0.00024931,2]
[340476239,1729290640964,-892.17,0.00024931,2]
[340476240,1729290640975,-1216.65,0.00024931,2]
[340476241,1729290640984,-612.09,0.00024931,2]
[340476242,1729290640993,-1216.65,0.00024931,2]
[340476243,1729290641002,-612.09,0.00024931,2]
[340476244,1729290641011,-1216.65,0.00024931,2]
[340476245,1729290641020,-612.09,0.00024931,2]
[340476246,1729290641029,-1216.65,0.00024931,2]
[340476247,1729290641038,-612.09,0.00024931,2]
[340476248,1729290641048,-1216.65,0.00024931,2]
[340476249,1729290641058,-612.09,0.00024931,2]
[340476250,1729290641067,-612.09,0.00024931,2]
[340476251,1729290641078,-612.09,0.00024931,2]
[340476252,1729290641087,-1023.47,0.00024931,2]
[340476253,1729290641097,-1023.47,0.00024931,2]
[340476254,1729290641107,-1023.47,0.00024931,2]
[340476255,1729290641117,-500.0,0.00024931,2]
[340476256,1729290641126,-1023.47,0.00024931,2]
[340476257,1729290641135,-500.0,0.00024931,2]
[340476258,1729290641144,-1023.47,0.00024931,2]
[340476259,1729290641153,-500.0,0.00024931,2]
[340476260,1729290641162,-500.0,0.00024931,2]
[340476261,1729290641172,-564.05,0.00024931,2]
[340476262,1729290641182,-620.47762117,0.00024931,2]
[340476263,1729290641191,-564.05,0.00024931,2]
[340476264,1729290641200,-564.05,0.00024931,2]
[340476265,1729290641209,-564.05,0.00024931,2]
[340476266,1729290641219,-500.0,0.00024931,2]
[340476267,1729290641227,-564.05,0.00024931,2]
[340476268,1729290641237,-500.0,0.00024931,2]
[340476269,1729290641246,-500.0,0.00024931,2]
[340476270,1729290641255,-564.05,0.00024931,2]
[340476271,1729290641264,-564.05,0.00024931,2]
[340476272,1729290641274,-500.0,0.00024931,2]